[Event "ONJK-A 2019"]
[Site "Borne"]
[Date "2019.08.06"]
[Round "2.4"]
[White "Godde, Matthias"]
[Black "Emans, Job"]
[Result "0-1"]
[ECO "C69"]
[WhiteElo "1989"]
[BlackElo "2089"]
[Annotator "NA"]
[PlyCount "104"]
[EventDate "2019.08.05"]
[EventType "swiss"]
[EventCountry "NED"]
[SourceTitle "playchess.com"]
[Source "ChessBase"]
[SourceQuality "1"]
[TimeControl "5400+30"]

1. e4 {[%emt 0:00:00]} e5 {[%emt 0:00:00]} 2. Nf3 {[%emt 0:00:04]} Nc6 {[%emt 0:00:00]} 3. Bb5 {[%emt 0:00:06]} a6 {[%emt 0:00:02]} 4. Bxc6 {[%emt 0:00:41]} dxc6 {[%emt 0:00:07]} 5. O-O {[%emt 0:00:07]} f6 {[%emt 0:00:32]} 6. d4 {[%emt 0:01:02]} exd4 {[%emt 0:01:21]} 7. Nxd4 {[%emt 0:00:38]} c5 {[%emt 0:01:33]} 8. Nf3 {[%emt 0:00:58]} Qxd1 {[%emt 0:02:15]} 9. Rxd1 {[%emt 0:00:02]} Bd7 {[%emt 0:00:05]} 10. Bf4 {[%emt 0:02:18]} O-O-O {[%emt 0:00:39]} 11. Nc3 {[%emt 0:00:28]} Ne7 {[%emt 0:06:40]} 12. a4 {[%emt 0:16:23]} b6 {[%emt 0:13:08]} 13. h4 {[%emt 0:02:38]} h5 {[%emt 0:02:55]} 14. Bg3 {[%emt 0:01:39]} Be6 {[%emt 0:15:16]} 15. Rxd8+ {[%emt 0:01:20]} Kxd8 $16 {[%emt 0:02:48]} 16. Rd1+ {[%emt 0:00:06]} Kc8 {[%emt 0:00:04]} 17. Ne1 {[%emt 0:24:00]} Nc6 {[%emt 0:13:32]} 18. Nd3 {[%emt 0:10:55]} Nd4 {[%emt 0:05:03]} 19. Nf4 {[%emt 0:01:58]} Bf7 {[%emt 0:00:05]} 20. Nfd5 {[%emt 0:05:41]} Bxd5 {[%emt 0:03:58]} 21. Nxd5 {[%emt 0:00:47]} Ne2+ {[%emt 0:01:05]} 22. Kf1 {[%emt 0:00:08]} Nxg3+ {[%emt 0:00:16]} 23. fxg3 {[%emt 0:00:02]} Kb7 {[%emt 0:00:53]} 24. Ne3 {[%emt 0:05:51]} Bd6 {[%emt 0:17:43]} 25. Nf5 {[%emt 0:00:22]} Be5 {[%emt 0:01:11]} 26. Nxg7 {[%emt 0:00:44]} Bxb2 {[%emt 0:00:28]} 27. Rd7 {[%emt 0:04:03]} Be5 {[%emt 0:00:58]} 28. Nf5 {[%emt 0:02:25]} b5 {[%emt 0:01:34]} 29. axb5 {[%emt 0:01:39]} axb5 {[%emt 0:00:08]} 30. Kf2 {[%emt 0:01:02]} b4 {[%emt 0:01:45]} 31. Kf3 {[%emt 0:04:43]} c4 {[%emt 0:02:15]} 32. Ne3 {[%emt 0:01:00]} b3 {[%emt 0:00:42]} 33. cxb3 {[%emt 0:04:14]} cxb3 {[%emt 0:00:04]} 34. Rd3 {[%emt 0:00:26]} b2 {[%emt 0:04:17]} 35. Rb3+ {[%emt 0:00:01]} Ka7 {[%emt 0:00:31]} 36. Nc4 {[%emt 0:02:39]} Rb8 {[%emt 0:00:34]} 37. Rxb8 {[%emt 0:00:46]} Kxb8 {[%emt 0:00:07]} 38. Nxb2 {[%emt 0:03:35]} Bxb2 {[%emt 0:00:04]} 39. g4 {[%emt 0:00:14]} hxg4+ {[%emt 0:01:53]} 40. Kxg4 {[%emt 0:00:02]} c5 {[%emt 0:00:39]} 41. Kf5 {[%emt 0:02:32]} c4 {[%emt 0:00:11]} 42. h5 {[%emt 0:00:18]} Bc1 {[%emt 0:00:21]} 43. e5 {[%emt 0:01:37]} fxe5 {[%emt 0:01:40]} 44. Kxe5 {[%emt 0:00:11]} Bb2+ {[%emt 0:00:56]} 45. Ke4 {[%emt 0:00:05]} Kc7 {[%emt 0:00:24]} 46. g4 {[%emt 0:01:47]} Kd6 {[%emt 0:00:11]} 47. g5 {[%emt 0:00:25]} Ke6 {[%emt 0:00:22]} 48. h6 {[%emt 0:00:39]} Kf7 {[%emt 0:01:19]} 49. Kf5 {[%emt 0:00:37]} c3 {[%emt 0:00:46]} 50. g6+ {[%emt 0:00:18]} Kg8 {[%emt 0:00:01]} 51. g7 {[%emt 0:00:42]} c2 {[%emt 0:00:13]} 52. Kg6 {[%emt 0:00:17]} Bxg7 {[%emt 0:00:05]} 0-1

[Event "ONJK-A 2019"]
[Site "Borne"]
[Date "2019.08.06"]
[Round "2.5"]
[White "Butzen, Robin"]
[Black "Baselmans, Sam"]
[Result "0-1"]
[ECO "E94"]
[WhiteElo "1967"]
[BlackElo "2064"]
[Annotator "NA"]
[PlyCount "66"]
[EventDate "2019.08.05"]
[EventType "swiss"]
[EventCountry "NED"]
[SourceTitle "playchess.com"]
[Source "ChessBase"]
[SourceQuality "1"]
[TimeControl "5400+30"]

1. c4 {[%emt 0:00:44]} Nf6 {[%emt 0:00:00]} 2. d4 {[%emt 0:00:05]} g6 {[%emt 0:00:00]} 3. Nc3 {[%emt 0:00:03]} Bg7 {[%emt 0:00:00]} 4. e4 {[%emt 0:00:04]} d6 {[%emt 0:00:00]} 5. Be2 {[%emt 0:00:04]} O-O {[%emt 0:00:00]} 6. Nf3 {[%emt 0:00:02]} Na6 {[%emt 0:00:02]} 7. O-O {[%emt 0:00:23]} e5 {[%emt 0:00:04]} 8. d5 {[%emt 0:02:15]} Nc5 {[%emt 0:00:05]} 9. Qc2 {[%emt 0:00:03]} a5 {[%emt 0:00:04]} 10. Ne1 {[%emt 0:09:53]} Nfd7 {[%emt 0:02:26]} 11. Bd2 {[%emt 0:02:00]} f5 {[%emt 0:00:13]} 12. f3 {[%emt 0:00:07]} f4 {[%emt 0:01:38]} 13. b3 {[%emt 0:00:05]} g5 {[%emt 0:03:19]} 14. g4 {[%emt 0:02:39] [#]} ({Better is} 14. Rb1 $11) 14... h5 $1 {[%emt 0:09:35]} 15. h3 {[%emt 0:00:13]} Kf7 {[%emt 0:00:21]} 16. Ng2 {[%emt 0:16:08]} ({White should try} 16. Bc1 $15) 16... Rh8 {[%emt 0:00:33]} 17. a3 {[%emt 0:02:06]} Rh6 {[%emt 0:15:25]} 18. b4 $19 {[%emt 0:04:50]} (18. Nd1 {might work better.}) 18... axb4 {[%emt 0:02:49]} 19. axb4 {[%emt 0:01:19]} Rxa1 {[%emt 0:00:07]} 20. Rxa1 {[%emt 0:00:04]} Na6 {[%emt 0:00:06]} 21. Nb5 {[%emt 0:11:18]} hxg4 {[%emt 0:01:38]} 22. hxg4 {[%emt 0:05:25]} c6 {[%emt 0:20:46]} 23. dxc6 {[%emt 0:06:33]} bxc6 {[%emt 0:00:30]} 24. Nxd6+ {[%emt 0:00:58]} Rxd6 {[%emt 0:01:22]} 25. c5 {[%emt 0:00:06]} Ndxc5 {[%emt 0:02:44]} 26. bxc5 {[%emt 0:13:30]} Rxd2 {[%emt 0:00:28]} 27. Qc4+ {[%emt 0:00:42]} Be6 {[%emt 0:05:58]} 28. Qxa6 {[%emt 0:02:23]} Rxe2 {[%emt 0:02:15]} 29. Qb7+ {[%emt 0:00:22]} Kf6 {[%emt 0:02:48]} 30. Ra7 {[%emt 0:00:14]} Bf8 {[%emt 0:01:15]} 31. Kh2 {[%emt 0:00:48]} Qd2 {[%emt 0:01:17]} 32. Kh3 {[%emt 0:01:06]} Bxg4+ {[%emt 0:00:16]} 33. fxg4 {[%emt 0:00:20]} Qd3+ {[%emt 0:00:08]} 0-1

[Event "ONJK-A 2019"]
[Site "Borne"]
[Date "2019.08.06"]
[Round "2.6"]
[White "Shakhverdian, William"]
[Black "Klaren, Duncan"]
[Result "1-0"]
[ECO "E15"]
[WhiteElo "2045"]
[BlackElo "1964"]
[Annotator "NA"]
[PlyCount "69"]
[EventDate "2019.08.05"]
[EventType "swiss"]
[EventCountry "NED"]
[SourceTitle "playchess.com"]
[Source "ChessBase"]
[SourceQuality "1"]
[TimeControl "5400+30"]

1. d4 {[%emt 0:00:00]} Nf6 {[%emt 0:00:00]} 2. c4 {[%emt 0:00:14]} e6 {[%emt 0:00:00]} 3. Nf3 {[%emt 0:00:17]} b6 {[%emt 0:00:00]} 4. g3 {[%emt 0:00:39]} Ba6 {[%emt 0:00:01]} 5. Bg2 {[%emt 0:00:05]} Bxc4 {[%emt 0:00:19]} 6. Nfd2 {[%emt 0:00:58]} Bd5 {[%emt 0:00:14]} 7. e4 {[%emt 0:00:11]} Bb7 {[%emt 0:00:41]} 8. O-O {[%emt 0:00:11]} c5 {[%emt 0:02:03]} 9. dxc5 {[%emt 0:12:09]} (9. d5 $5) 9... Bxc5 {[%emt 0:00:37]} 10. a3 {[%emt 0:04:25]} (10. Nc3 $1 $11) 10... O-O {[%emt 0:03:37]} 11. b4 {[%emt 0:00:10]} Be7 {[%emt 0:00:28]} 12. Bb2 {[%emt 0:01:18]} d6 {[%emt 0:02:54]} 13. Nc3 {[%emt 0:01:25]} Nbd7 {[%emt 0:02:03]} 14. Rc1 {[%emt 0:01:51]} Ne5 {[%emt 0:05:25]} 15. Qe2 {[%emt 0:03:25]} a5 {[%emt 0:07:17]} 16. b5 {[%emt 0:01:07]} Ned7 {[%emt 0:14:11]} 17. Rfd1 {[%emt 0:01:12]} Rc8 $16 {[%emt 0:03:55]} (17... d5 $11 {keeps the balance.}) 18. e5 {[%emt 0:10:49]} Nd5 {[%emt 0:01:39]} 19. Nxd5 {[%emt 0:00:38]} Bxd5 {[%emt 0:01:33]} 20. Bxd5 {[%emt 0:04:30]} exd5 {[%emt 0:00:04]} 21. Rxc8 {[%emt 0:15:14]} Qxc8 {[%emt 0:00:06]} 22. Rc1 {[%emt 0:00:30]} Nc5 {[%emt 0:00:39]} 23. Qf3 {[%emt 0:02:11]} dxe5 {[%emt 0:01:29]} 24. Bxe5 {[%emt 0:00:05]} Qe6 {[%emt 0:00:28]} 25. Bd4 {[%emt 0:01:39]} Re8 {[%emt 0:01:21]} 26. Nb3 {[%emt 0:02:22]} Ne4 {[%emt 0:05:14]} 27. Rc6 {[%emt 0:01:16]} Ng5 {[%emt 0:00:08]} 28. Qe3 {[%emt 0:03:33]} Qh3 {[%emt 0:01:29]} 29. Nd2 {[%emt 0:09:18]} Ne6 {[%emt 0:03:53]} 30. Bxb6 {[%emt 0:06:51]} Bxa3 {[%emt 0:11:21]} 31. Nf3 {[%emt 0:04:55]} Qf5 {[%emt 0:04:03]} 32. Qxa3 {[%emt 0:02:00]} Nf4 {[%emt 0:01:44]} 33. gxf4 {[%emt 0:03:47]} Qg4+ {[%emt 0:00:12]} 34. Kh1 {[%emt 0:01:01]} Qh3 {[%emt 0:01:24]} 35. Qd3 {[%emt 0:02:11]} 1-0

[Event "ONJK-A 2019"]
[Site "Borne"]
[Date "2019.08.06"]
[Round "2.7"]
[White "Hofstra, Tetske"]
[Black "Noordenbos, Daan"]
[Result "0-1"]
[ECO "B22"]
[WhiteElo "1126"]
[BlackElo "2042"]
[Annotator "NA"]
[PlyCount "86"]
[EventDate "2019.08.05"]
[EventType "swiss"]
[EventCountry "NED"]
[SourceTitle "playchess.com"]
[Source "ChessBase"]
[SourceQuality "1"]
[TimeControl "5400+30"]

1. e4 {[%emt 0:00:00]} c5 {[%emt 0:00:00]} 2. Nf3 {[%emt 0:00:19]} Nc6 {[%emt 0:00:00]} 3. c3 {[%emt 0:01:01]} d5 {[%emt 0:00:06]} 4. e5 {[%emt 0:01:18]} Bg4 {[%emt 0:00:44]} 5. d4 {[%emt 0:00:47]} (5. Bb5 Qb6 6. Na3 e6 7. O-O a6 8. Bxc6+ Qxc6 9. Nc2 Ne7 10. h3 Bh5 11. d4 c4 12. Ne3 h6 13. Bd2 {0-1 (48) Apicella,M (2501)-Lagarde,M (2615) Cannes 2018}) 5... Bxf3 {[%emt 0:00:32]} 6. Qxf3 {[%emt 0:00:34] B22: Sicilian: 2 c3} cxd4 {[%emt 0:00:16]} 7. Bb5 {[%emt 0:00:46]} dxc3 {[%emt 0:00:51]} 8. Bxc6+ $146 {[%emt 0:00:33]} ({Predecessor:} 8. O-O e6 9. Nxc3 Nge7 10. Rd1 a6 11. Ne4 Ng6 12. Bxc6+ bxc6 {1-0 (31) Perez Pietronave,C (2295)-Maggiolo,E (2130) Buenos Aires 1998}) 8... bxc6 {[%emt 0:00:06]} 9. Qxc3 {[%emt 0:00:17]} Qd7 {[%emt 0:01:05]} 10. Be3 {[%emt 0:00:56]} e6 {[%emt 0:00:37]} 11. O-O {[%emt 0:00:19]} Rb8 {[%emt 0:00:43]} 12. Nd2 {[%emt 0:01:00]} Bb4 {[%emt 0:00:18]} 13. Qd4 {[%emt 0:01:59]} Ne7 {[%emt 0:03:49]} 14. Nb3 {[%emt 0:02:51]} Rb7 {[%emt 0:09:21]} (14... a5 $17 15. Qd3 Nf5) 15. a3 {[%emt 0:00:20]} (15. Qg4 $11 {remains equal.} Nf5 16. Bc5) 15... Nf5 {[%emt 0:00:07]} 16. Qd3 {[%emt 0:00:38]} Be7 {[%emt 0:01:02]} ({Better is} 16... Nxe3 $17 17. Qxe3 Be7) 17. Rab1 {[%emt 0:06:58]} d4 {[%emt 0:01:30]} 18. Bf4 {[%emt 0:05:47]} Qd5 {[%emt 0:01:24]} 19. Nd2 {[%emt 0:01:33]} h5 {[%emt 0:00:37]} 20. Nf3 {[%emt 0:01:15]} (20. h3 $17) 20... Rb3 {[%emt 0:01:16]} 21. Qe2 {[%emt 0:01:00]} Rxf3 $2 {[%emt 0:04:32]} (21... d3 $19 22. Qd2 O-O) 22. Qxf3 {[%emt 0:01:07]} Qxf3 {[%emt 0:00:11]} 23. gxf3 {[%emt 0:00:04]} g5 {[%emt 0:00:15]} 24. Bd2 {[%emt 0:01:06] [#]} (24. Bc1 $15) 24... Nh4 $1 {[%emt 0:00:07]} 25. Rfd1 {[%emt 0:01:27]} Nxf3+ {[%emt 0:00:10] Double Attack} 26. Kg2 {[%emt 0:00:46]} Nxe5 {[%emt 0:00:12]} 27. f4 {[%emt 0:00:51]} (27. Be1 $17) 27... gxf4 {[%emt 0:00:31]} 28. Bxf4 {[%emt 0:00:12]} Ng6 {[%emt 0:00:05]} 29. Kf3 $19 {[%emt 0:00:39]} (29. Bb8 $142 e5 30. Bxa7) 29... e5 {[%emt 0:00:08]} 30. Bg3 {[%emt 0:00:16]} f5 {[%emt 0:00:14]} 31. Bf2 {[%emt 0:01:54]} e4+ {[%emt 0:00:20]} 32. Ke2 {[%emt 0:00:21]} Nf4+ {[%emt 0:00:16]} 33. Ke1 {[%emt 0:00:37]} Nd3+ {[%emt 0:00:30]} 34. Rxd3 {[%emt 0:02:22]} exd3 {[%emt 0:00:13]} 35. Bxd4 {[%emt 0:00:08]} Rg8 {[%emt 0:00:38]} 36. Bxa7 {[%emt 0:00:21]} Rg2 {[%emt 0:01:20]} 37. Bb8 {[%emt 0:00:36]} Rg1+ {[%emt 0:00:05]} 38. Kd2 {[%emt 0:00:17]} Rxb1 {[%emt 0:00:09]} 39. Be5 {[%emt 0:00:24]} f4 {[%emt 0:00:36]} 40. Bxf4 {[%emt 0:00:26]} Rxb2+ {[%emt 0:00:06]} 41. Kxd3 {[%emt 0:00:22]} Bxa3 {[%emt 0:00:23]} 42. Kc3 {[%emt 0:01:13]} Rf2 {[%emt 0:00:13]} 43. Be5 {[%emt 0:00:51]} Bb2+ {[%emt 0:00:03]} 0-1

[Event "ONJK-A 2019"]
[Site "Borne"]
[Date "2019.08.06"]
[Round "2.8"]
[White "Hilwerda, Jonas"]
[Black "Vleming, Stefan"]
[Result "1/2-1/2"]
[ECO "C45"]
[WhiteElo "2263"]
[BlackElo "1760"]
[Annotator "NA"]
[PlyCount "75"]
[EventDate "2019.08.05"]
[EventType "swiss"]
[EventCountry "NED"]
[SourceTitle "playchess.com"]
[Source "ChessBase"]
[SourceQuality "1"]
[TimeControl "5400+30"]

1. e4 {[%emt 0:00:16]} e5 {[%emt 0:00:00]} 2. Nf3 {[%emt 0:00:03]} Nc6 3. d4 {[%emt 0:00:30]} exd4 {[%emt 0:00:44]} 4. Nxd4 {[%emt 0:00:30]} Bc5 {[%emt 0:00:30]} 5. Nb3 {[%emt 0:00:30]} Bb6 {[%emt 0:00:30]} 6. a4 {[%emt 0:00:30]} a6 {[%emt 0:00:30]} 7. Nc3 {[%emt 0:02:17]} d6 {[%emt 0:09:23]} 8. Nd5 {[%emt 0:00:39]} Ba7 {[%emt 0:00:43]} 9. Be3 {[%emt 0:00:02]} Bxe3 {[%emt 0:01:38]} 10. Nxe3 {[%emt 0:00:02]} Nf6 {[%emt 0:00:46]} 11. Bd3 {[%emt 0:01:46]} Be6 {[%emt 0:02:51]} 12. c4 {[%emt 0:06:03]} O-O {[%emt 0:05:24]} 13. O-O {[%emt 0:06:08]} Re8 {[%emt 0:04:31]} 14. f3 {[%emt 0:01:10]} Ne5 {[%emt 0:07:40]} 15. Be2 {[%emt 0:02:59]} c6 $11 {[%emt 0:02:48]} 16. Qd4 {[%emt 0:39:15]} Qc7 {[%emt 0:07:54]} 17. Nd2 {[%emt 0:07:58]} Rad8 {[%emt 0:06:18]} 18. f4 {[%emt 0:03:26]} Neg4 {[%emt 0:04:34]} 19. Nxg4 {[%emt 0:07:40]} Bxg4 {[%emt 0:02:40]} 20. Bd3 {[%emt 0:00:22]} Qa5 {[%emt 0:12:45]} 21. Rf2 {[%emt 0:03:03]} c5 {[%emt 0:10:48]} 22. Qc3 {[%emt 0:03:27]} Qxc3 {[%emt 0:01:13]} 23. bxc3 {[%emt 0:00:02]} Bd7 {[%emt 0:00:49]} 24. Re2 {[%emt 0:06:02]} Bc6 {[%emt 0:02:47]} 25. Bc2 {[%emt 0:01:19]} Re7 {[%emt 0:02:02]} 26. Rae1 {[%emt 0:00:56]} Rde8 {[%emt 0:00:17]} 27. g3 {[%emt 0:00:45]} Nd7 {[%emt 0:04:02]} 28. Kf2 {[%emt 0:00:50]} Nb6 {[%emt 0:02:18]} 29. a5 {[%emt 0:02:12]} Nd7 {[%emt 0:02:36]} 30. g4 {[%emt 0:00:25]} Nf6 {[%emt 0:02:04]} 31. h3 {[%emt 0:00:20]} Re6 {[%emt 0:01:29]} 32. Bd3 {[%emt 0:03:06]} Nd7 {[%emt 0:00:14]} 33. Nf1 {[%emt 0:00:56]} Rf6 {[%emt 0:00:54]} 34. Kg3 {[%emt 0:00:47]} h5 {[%emt 0:01:15]} 35. Ne3 {[%emt 0:00:49]} h4+ {[%emt 0:01:29]} 36. Kxh4 Rxf4 {[%emt 0:00:08]} 37. Nf5 {[%emt 0:01:12]} Ne5 {[%emt 0:00:37]} 38. Re3 {[%emt 0:03:34]} 1/2-1/2

[Event "ONJK-A 2019"]
[Site "Borne"]
[Date "2019.08.06"]
[Round "2.9"]
[White "Van Roon, Sjoerd"]
[Black "De Bock, Thijs"]
[Result "0-1"]
[ECO "B51"]
[WhiteElo "2072"]
[BlackElo "1870"]
[Annotator "NA"]
[PlyCount "88"]
[EventDate "2019.08.05"]
[EventType "swiss"]
[EventCountry "NED"]
[SourceTitle "playchess.com"]
[Source "ChessBase"]
[SourceQuality "1"]
[TimeControl "5400+30"]

1. e4 {[%emt 0:00:00]} c5 {[%emt 0:00:00]} 2. Nf3 {[%emt 0:00:00]} d6 {[%emt 0:00:00]} 3. Bb5+ {[%emt 0:00:00]} Nd7 {[%emt 0:00:00]} 4. Ba4 {[%emt 0:00:00]} Ngf6 {[%emt 0:02:23]} 5. O-O {[%emt 0:00:23]} Nxe4 {[%emt 0:00:42]} 6. Re1 {[%emt 0:01:22]} Nef6 {[%emt 0:00:40]} 7. d4 {[%emt 0:02:32]} e6 {[%emt 0:03:28]} 8. d5 {[%emt 0:00:15]} Be7 {[%emt 0:00:26]} 9. dxe6 {[%emt 0:07:17] Pin} fxe6 {[%emt 0:00:34] [#]} 10. Ng5 $1 {[%emt 0:03:54]} ({Inferior is} 10. Rxe6 O-O $11) 10... Qa5 {[%emt 0:01:05]} 11. Nxe6 {[%emt 0:27:34]} (11. Nc3 $18 {has better winning chances.} e5 12. Bd2) 11... Qxa4 {[%emt 0:00:16] [#]} 12. Nc7+ $17 {[%emt 0:00:06]} ({Much worse is} 12. Nxg7+ $6 Kf7 $11) (12. Nc3 $1 $16 {[%cal Rc3a4] keeps the pressure on.} Qc6 {[#]} 13. Nd5 $1 {[%mdl 512]} (13. Nxg7+ Kf7 $17) 13... Nxd5 14. Nxg7+ Kf7 15. Qh5+ Kg8 16. Nf5) 12... Kd8 $2 {[%emt 0:00:03]} 13. Ne6+ {[%emt 0:00:41]} ({Of course not} 13. Nxa8 $6 Qc6 $11) 13... Ke8 {[%emt 0:00:06]} 14. Nc7+ {[%emt 0:00:02]} Kf7 $1 $15 {[%emt 0:01:50] keeps the upper hand.} 15. Nxa8 {[%emt 0:00:24]} Qc6 {[%emt 0:00:07]} (15... Ne5) 16. Nc3 {[%emt 0:10:35]} (16. Bf4 $142) 16... b6 {[%emt 0:01:23]} 17. Qf3 {[%emt 0:02:45]} Qxf3 {[%emt 0:02:03]} 18. gxf3 {[%emt 0:00:04]} Ne5 {[%emt 0:00:07]} 19. Rxe5 {[%emt 0:03:47]} dxe5 {[%emt 0:00:06]} 20. Nc7 {[%emt 0:00:03]} Bb7 {[%emt 0:00:41]} 21. f4 {[%emt 0:05:43]} e4 {[%emt 0:06:20]} 22. Be3 {[%emt 0:01:11]} a6 {[%emt 0:04:33]} 23. Rd1 {[%emt 0:01:09]} Rd8 {[%emt 0:01:06]} 24. f5 {[%emt 0:00:51]} Rxd1+ {[%emt 0:00:35]} 25. Nxd1 {[%emt 0:00:05]} g6 {[%emt 0:02:08]} 26. fxg6+ {[%emt 0:01:38]} hxg6 {[%emt 0:00:03]} 27. Bf4 {[%emt 0:01:35]} Nh5 {[%emt 0:03:01]} 28. Be5 {[%emt 0:01:04]} Bf6 {[%emt 0:00:48]} 29. Bd6 {[%emt 0:00:55]} Ng7 {[%emt 0:01:29]} 30. Ne3 {[%emt 0:04:05]} Nf5 {[%emt 0:02:11]} 31. Nxf5 {[%emt 0:00:49]} gxf5 {[%emt 0:00:04]} 32. c3 {[%emt 0:00:05]} c4 {[%emt 0:02:12]} 33. Kf1 {[%emt 0:01:09]} Bg5 {[%emt 0:01:53]} 34. Ke2 {[%emt 0:03:30]} f4 {[%emt 0:01:49]} 35. b3 {[%emt 0:01:51]} b5 {[%emt 0:00:30]} 36. bxc4 {[%emt 0:02:10]} bxc4 {[%emt 0:02:27]} 37. a4 {[%emt 0:00:37]} f3+ {[%emt 0:02:10]} 38. Ke1 {[%emt 0:00:43]} Bh4 {[%emt 0:00:35]} 39. a5 {[%emt 0:03:10]} e3 {[%emt 0:01:13]} 40. Bg3 {[%emt 0:01:01]} Bxg3 {[%emt 0:00:39]} 41. fxg3 {[%emt 0:00:03]} f2+ {[%emt 0:00:18]} 42. Kf1 {[%emt 0:00:07]} Be4 {[%emt 0:00:06]} 43. Nxa6 {[%emt 0:00:09]} Bd3+ {[%emt 0:00:04]} 44. Kg2 {[%emt 0:00:04]} f1=Q# {[%emt 0:00:07]} 0-1

[Event "ONJK-A 2019"]
[Site "Borne"]
[Date "2019.08.06"]
[Round "2.10"]
[White "Albers, Sasa"]
[Black "Koning, Femke"]
[Result "1-0"]
[ECO "C66"]
[WhiteElo "1889"]
[BlackElo "1580"]
[Annotator "NA"]
[PlyCount "55"]
[EventDate "2019.08.05"]
[EventType "swiss"]
[EventCountry "NED"]
[SourceTitle "playchess.com"]
[Source "ChessBase"]
[SourceQuality "1"]
[TimeControl "5400+30"]

1. e4 {[%emt 0:00:00]} e5 {[%emt 0:00:00]} 2. Nf3 {[%emt 0:00:00]} Nc6 {[%emt 0:00:00]} 3. Bb5 {[%emt 0:00:00]} d6 {[%emt 0:00:33]} 4. c3 {[%emt 0:00:00]} Bd7 {[%emt 0:02:29]} 5. O-O {[%emt 0:00:06]} Be7 {[%emt 0:05:41]} 6. d4 {[%emt 0:00:25]} Nf6 {[%emt 0:04:09]} 7. Re1 {[%emt 0:02:21]} O-O {[%emt 0:01:48]} 8. d5 {[%emt 0:01:13]} Nb8 {[%emt 0:00:56]} 9. Bxd7 {[%emt 0:00:27]} Nbxd7 {[%emt 0:00:28]} 10. c4 {[%emt 0:00:13]} Nb6 {[%emt 0:05:47]} 11. Qe2 {[%emt 0:05:23]} c6 {[%emt 0:07:18]} 12. dxc6 {[%emt 0:04:39]} bxc6 {[%emt 0:00:13]} 13. c5 {[%emt 0:00:10]} Nbd7 {[%emt 0:07:05]} 14. cxd6 {[%emt 0:00:27]} Bxd6 {[%emt 0:00:09]} 15. Nc3 {[%emt 0:00:28]} (15. Nbd2 $16) 15... Rb8 {[%emt 0:03:29]} 16. Rd1 {[%emt 0:04:28]} Qc7 {[%emt 0:02:11]} 17. Bg5 $14 {[%emt 0:00:59]} Bb4 {[%emt 0:04:41]} 18. Rac1 {[%emt 0:02:33]} Rfe8 {[%emt 0:01:33]} 19. Bxf6 {[%emt 0:05:37]} Nxf6 {[%emt 0:00:53]} 20. Nd5 {[%emt 0:00:09]} Nxd5 {[%emt 0:01:37]} 21. exd5 {[%emt 0:00:02]} e4 {[%emt 0:02:31]} 22. Nd4 {[%emt 0:04:10]} c5 {[%emt 0:03:46]} 23. Nc6 {[%emt 0:02:16]} Rb7 {[%emt 0:02:09]} 24. a3 {[%emt 0:00:06]} Ba5 {[%emt 0:00:17]} 25. b4 {[%emt 0:00:02]} Bb6 {[%emt 0:01:19]} 26. bxc5 {[%emt 0:00:07]} Ba5 {[%emt 0:00:31]} 27. Nxa5 {[%emt 0:00:21]} Qxa5 {[%emt 0:00:49]} 28. c6 {[%emt 0:00:48]} 1-0